fUST/lending_fUST_20251111
["ID","MTS","AMOUNT","RATE_DAILY","PERIOD"]
[393598987,1762836589029,-979.89170532,0.00016964,2]
[393598988,1762836589053,-979.89170532,0.00016964,2]
[393598989,1762836589077,-979.89170532,0.00016964,2]
[393598990,1762836589102,-979.89170532,0.00016964,2]
[393598991,1762836589128,-979.89170532,0.00016964,2]
[393598992,1762836589152,-979.89170532,0.00016964,2]
[393598993,1762836589177,-979.89170532,0.00016964,2]
[393598994,1762836589201,-979.89170532,0.00016964,2]
[393598995,1762836589226,-979.89170532,0.00016964,2]
[393598996,1762836589251,-979.89170532,0.00016964,2]
[393598997,1762836589275,-979.89170532,0.00016964,2]
[393598998,1762836589299,-979.89170532,0.00016964,2]
[393598999,1762836589324,-300.0,0.00016969,2]
[393599000,1762836589351,-15403.7903138,0.0001697,2]
[393599001,1762836594145,-45000.0,0.0001697,2]
[393599032,1762836632085,-300.0,0.00016969,2]
[393599034,1762836632095,-1200.0,0.00016969,2]
[393599036,1762836632104,-500.0,0.00016969,2]
[393599038,1762836632114,-500.0,0.00016969,2]
[393599040,1762836632123,-500.0,0.00016969,2]
[393599042,1762836632132,-500.0,0.00016969,2]
[393599044,1762836632142,-151.0,0.0001697,2]
[393599046,1762836632151,-151.0,0.0001697,2]
[393599048,1762836632160,-158.30652294,0.0001697,2]
[393599050,1762836632170,-1337.69347706,0.0001697,2]
[393599052,1762836632185,-4690.23561314,0.0001697,2]
[393599054,1762836632197,-505.69039711,0.0001697,2]
[393599057,1762836632207,-503.77344352,0.0001697,2]
[393599059,1762836632218,-802.4330551,0.0001697,2]
[393599061,1762836632230,-1406.71259843,0.0001697,2]
[393599081,1762836634091,727.306494,0.00019487,7]
[393599082,1762836635782,727.306494,0.00019487,7]
[393599083,1762836637272,727.306494,0.00019487,7]
[393599095,1762836637997,-500.0,0.00016969,2]
[393599096,1762836638007,-500.0,0.00016969,2]
[393599097,1762836638017,-500.0,0.00016969,2]
[393599098,1762836638026,-500.0,0.00016969,2]
[393599099,1762836638035,-500.0,0.00016969,2]
[393599100,1762836638047,-500.0,0.00016969,2]
[393599101,1762836638056,-500.0,0.00016969,2]
[393599102,1762836638066,-296.81392785,0.00016969,2]
[393599103,1762836638075,-500.0,0.00016969,2]
[393599104,1762836638086,-500.0,0.00016969,2]
[393599105,1762836638095,-500.0,0.00016969,2]
[393599107,1762836638106,-482.43422671,0.00016969,2]
[393599109,1762836638115,-500.0,0.00016969,2]
[393599111,1762836638125,-500.0,0.00016969,2]
[393599112,1762836638135,-258.0009664,0.00016969,2]
[393599113,1762836638146,-380.91974425,0.00016969,2]
[393599114,1762836638156,-253.29782146,0.00016969,2]
[393599115,1762836638165,-7982.44685699,0.0001697,2]
[393599116,1762836638784,727.306494,0.00019487,7]
[393599144,1762836645734,-2622.23836114,0.0001697,2]
[393599185,1762836646342,-500.0,0.00016969,2]
[393599187,1762836646352,-626.29061322,0.00016969,2]
[393599189,1762836646361,-3272.14740358,0.0001697,2]
[393599193,1762836646397,-342.55454446,0.0001697,2]
[393599196,1762836646410,-375.17554762,0.0001697,2]
[393599206,1762836646616,-263.31837481,0.0001697,2]
[393599209,1762836791352,294.72759299,0.000328,120]
[393599210,1762836814722,581.845196,0.00019487,7]
[393599211,1762836816343,581.845196,0.00019487,7]
[393599212,1762836817883,581.845196,0.00019487,7]
[393599213,1762836819478,581.845196,0.00019487,7]
[393599214,1762836917920,80684.92915738,0.000196,4]
[393599215,1762836918452,477.593056,0.00015953,2]
[393599216,1762837171552,3839.1685141,0.0001677,2]
[393599217,1762837192814,300.0,0.000168,2]
[393599221,1762837539949,-264.06763225,0.00016868,2]
[393599222,1762837541527,-35.93236775,0.00016868,2]
[393599223,1762837541548,-182.1084991,0.00016868,2]
[393599224,1762837544893,-117.8915009,0.00016868,2]
[393599225,1762837544919,-118.0702754,0.00016868,2]
[393599226,1762837547162,-181.9297246,0.00016868,2]
[393599227,1762837547185,-63.10666075,0.00016868,2]
[393599228,1762837549994,-273.32328901,0.00016868,2]
[393599229,1762837552761,-277.96177954,0.00016868,2]
[393599230,1762837557976,-195.90881512,0.00016868,2]
[393599231,1762837561015,-200.31215905,0.00016868,2]
[393599232,1762837564461,-189.38729653,0.00016868,2]
[393599233,1762837564485,-51.95248987,0.00016868,2]
[393599234,1762837566089,-248.04751013,0.00016868,2]
[393599235,1762837566114,-41.34412885,0.00016869,2]
[393599236,1762837573534,2000.0,0.0001826,3]
[393599237,1762837584985,-159.17537374,0.00016869,2]
[393599238,1762837585007,-40.30144176,0.00016869,2]
[393599239,1762837587828,-119.69855824,0.00016869,2]
[393599240,1762837587850,-71.99479343,0.00016869,2]
[393599241,1762837589454,-291.34857518,0.00016869,2]
[393599242,1762837590962,-422.26670992,0.00016869,2]
[393599243,1762837595527,-33.38992147,0.00016869,2]
[393599244,1762837595549,-313.47608854,0.00016869,2]
[393599245,1762837598872,-208.99394474,0.00016869,2]
[393599246,1762837616195,-370.87934228,0.00016869,2]
[393599247,1762837618956,-279.88180334,0.00016869,2]
[393599248,1762837620730,161.9324311,0.00015953,2]
[393599249,1762837621618,-291.09870033,0.00016869,2]
[393599250,1762837624911,-187.19322788,0.00016868,2]
[393599251,1762837626959,-112.80677212,0.00016868,2]
[393599252,1762837626981,-43.59820141,0.00016869,2]
[393599253,1762837631849,-155.5769751,0.00016869,2]
[393599254,1762837633695,-309.7072065,0.00016869,2]
[393599255,1762837636389,-174.67214251,0.00016869,2]
[393599256,1762837640745,-319.1782403,0.00016869,2]
[393599257,1762837643455,-227.76804493,0.00016869,2]
[393599258,1762837657873,619.15413911,0.000168,2]
[393599259,1762837658733,-189.46321094,0.00016869,2]
[393599260,1762837661773,-294.73160547,0.00016869,2]
[393599261,1762837663307,-60.73477706,0.00016869,2]
[393599262,1762837663331,-113.66184476,0.00016869,2]
[393599263,1762837666783,-226.14971102,0.00016869,2]
[393599264,1762837666807,-133.45445635,0.00016869,2]
[393599265,1762837670273,-167.10015383,0.00016869,2]
[393599266,1762837672604,-199.44538982,0.00016869,2]
[393599267,1762837672627,-119.72739542,0.00016869,2]
[393599268,1762837676019,-158.4275656,0.00016869,2]
[393599269,1762837677018,3744.23807107,0.000168,2]
[393599270,1762837677552,-221.84503898,0.00016869,2]
[393599271,1762837677574,-70.03198793,0.00016869,2]
[393599272,1762837681464,-256.02365009,0.00016869,2]
[393599273,1762837682765,170.93,0.00015135,2]
[393599274,1762837684531,-185.69133198,0.00016868,2]
[393599275,1762837688163,-114.30866802,0.00016868,2]
[393599276,1762837688186,-173.94436198,0.00016869,2]
[393599277,1762837688209,-7.33254204,0.00016869,2]
[393599278,1762837690849,-267.97438449,0.00016869,2]
[393599279,1762837692816,-158.86447604,0.00016869,2]
[393599280,1762837694654,416.09243304,0.00016483,2]
[393599281,1762837696075,-65.82859743,0.00016869,2]
[393599282,1762837696096,-240.87024519,0.00016869,2]
[393599283,1762837697790,-64.29585024,0.00016869,2]
[393599284,1762837697812,-380.50115927,0.00016869,2]
[393599285,1762837700679,-119.49884073,0.00016869,2]
[393599286,1762837700700,-35.57638488,0.00016869,2]
[393599287,1762837702313,-202.75622113,0.00016869,2]
[393599288,1762837704399,-261.66739399,0.00016869,2]
[393599289,1762837704434,-61.79907147,0.00016869,2]
[393599290,1762837707034,-303.69434824,0.00016869,2]
[393599291,1762837709016,-134.50658029,0.00016869,2]
[393599292,1762837709041,-173.38392685,0.00016869,2]
[393599293,1762837711833,-216.89110342,0.00016869,2]
[393599294,1762837714587,-109.72496973,0.00016869,2]
[393599295,1762837714612,-64.97701262,0.00016869,2]
[393599296,1762837716237,-379.90765111,0.00016869,2]
[393599297,1762837735961,-55.11533627,0.00016869,2]
[393599298,1762837735984,-189.80271165,0.00016869,2]
[393599299,1762837738668,-228.62101657,0.00016869,2]
[393599300,1762837740327,-54.53405886,0.00016869,2]
[393599301,1762837740351,-234.44197572,0.00016869,2]
[393599302,1762837741993,-265.55802428,0.00016869,2]
[393599303,1762837742015,-30.81495547,0.00016869,2]
[393599304,1762837745367,-151.0,0.00016868,2]
[393599305,1762837764935,-149.0,0.00016868,2]
[393599306,1762837764957,-75.57597605,0.00016869,2]
[393599307,1762837766434,-267.0437159,0.00016869,2]
[393599308,1762837769893,-126.56535258,0.00016869,2]
[393599309,1762837769914,-125.54008145,0.00016869,2]
[393599310,1762837772999,-258.31547562,0.00016869,2]
[393599311,1762837775156,2001.82,0.0001686,2]
[393599312,1762837776479,-116.14444293,0.00016869,2]
[393599313,1762837776502,-348.6851097,0.00016869,2]
[393599314,1762837778696,-151.3148903,0.00016869,2]
[393599315,1762837778718,-152.84714342,0.00016869,2]
[393599316,1762837794855,-155.08502739,0.00016869,2]
[393599317,1762837796384,-163.50478647,0.00016869,2]
[393599318,1762837799599,-28.56304272,0.00016869,2]
[393599319,1762837799621,-255.27343491,0.00016869,2]
[393599320,1762837801223,-244.72656509,0.00016869,2]
[393599321,1762837801245,-83.56079901,0.00016869,2]
[393599322,1762837803415,-300.0,0.00016868,2]
[393599323,1762837803447,-8.42698978,0.00016868,2]
[393599324,1762837806258,-183.50640075,0.00016868,2]
[393599325,1762837807788,-275.09818743,0.00016868,2]
[393599326,1762837824891,-213.92952452,0.00016868,2]
[393599327,1762837827852,-151.0,0.00016868,2]
[393599328,1762837830369,-259.44315668,0.00016868,2]
[393599361,1762837832232,-108.59574084,0.00016868,2]
[393599363,1762837832242,-819.0,0.00016869,2]
[393599365,1762837832251,-416.43920099,0.00016869,2]
[393599367,1762837832260,-500.0,0.00016869,2]
[393599369,1762837832269,-500.0,0.00016869,2]
[393599371,1762837832278,-500.0,0.00016869,2]
[393599373,1762837832288,-600.69852154,0.00016869,2]
[393599375,1762837832297,-500.0,0.00016869,2]
[393599377,1762837832307,-500.0,0.00016869,2]
[393599379,1762837832316,-500.0,0.00016869,2]
[393599381,1762837832326,-333.26548103,0.00016869,2]
[393599383,1762837832341,-166.73451897,0.00016869,2]
[393599385,1762837832350,-500.0,0.00016869,2]
[393599387,1762837832359,-500.0,0.00016869,2]
[393599389,1762837832368,-500.0,0.00016869,2]
[393599390,1762837832379,-101.83258283,0.00016869,2]
[393599393,1762837832391,-258.22366975,0.00016869,2]
[393599395,1762837832404,-139.94374742,0.00016869,2]
[393599397,1762837832414,-500.0,0.00016869,2]
[393599399,1762837832423,-500.0,0.00016869,2]
[393599401,1762837832433,-500.0,0.00016869,2]
[393599403,1762837832442,-500.0,0.00016869,2]
[393599405,1762837832451,-500.0,0.00016869,2]
[393599407,1762837832461,-500.0,0.00016869,2]
[393599409,1762837832470,-500.0,0.00016869,2]
[393599411,1762837832479,-215.41226006,0.00016869,2]
[393599413,1762837832488,-238.89643617,0.00016869,2]
[393599415,1762837832498,-219.31307533,0.00016869,2]
[393599417,1762837832512,-617.13634289,0.00016869,2]
[393599419,1762837832522,-351.47319254,0.00016869,2]
[393599421,1762837832532,-285.36156903,0.00016869,2]
[393599423,1762837832541,-253.4292908,0.00016869,2]
[393599425,1762837832551,-291.09870033,0.00016869,2]
[393599427,1762837832561,-264.84105312,0.00016869,2]
[393599429,1762837832570,-258.77678796,0.00016869,2]
[393599431,1762837832579,-235.15894688,0.00016869,2]
[393599433,1762837832588,-174.39662182,0.00016869,2]
[393599435,1762837832597,-325.13947046,0.00016869,2]
[393599437,1762837832607,-202.75622113,0.00016869,2]
[393599439,1762837832616,-200.42728884,0.0001687,2]
[393599441,1762837832625,-1788.10679863,0.0001687,2]
[393599456,1762837833140,-156.92089254,0.0001687,2]
[393599457,1762837835320,-334.69430058,0.0001687,2]
[393599458,1762837836864,-426.54357432,0.0001687,2]
[393599464,1762837838541,-265.99927637,0.0001687,2]
[393599469,1762837841372,-3e-08,0.0001687,2]
[393599480,1762837845444,-1583.47469793,0.0001687,2]
[393599481,1762837845609,-253.7093,0.0001687,2]
[393599494,1762837846486,-441.38932044,0.0001687,2]
[393599495,1762837846648,-1601.50290335,0.0001687,2]
[393599496,1762837846705,-4319.9089556,0.0001687,2]
[393599497,1762837846716,-3504.42696805,0.0001687,2]
[393599498,1762837854911,-302.5131147,0.00016869,2]
[393599499,1762837856430,32496.0,0.00032,120]
[393599500,1762837857362,-180.75886171,0.00016869,2]
[393599501,1762837859693,-16.72802359,0.00016869,2]
[393599502,1762837859715,-376.68189537,0.00016869,2]
[393599503,1762837861684,-123.31810463,0.00016869,2]
[393599504,1762837861708,-63.47746728,0.00016869,2]
[393599505,1762837863426,-300.0,0.00016868,2]
[393599506,1762837863450,-133.44873861,0.00016869,2]
[393599507,1762837867013,-303.07379411,0.00016869,2]
[393599508,1762837867036,-24.88706641,0.00016869,2]
[393599509,1762837868548,-193.57893469,0.00016869,2]
[393599510,1762837884854,-231.30102742,0.00016869,2]
[393599511,1762837887180,-50.23297148,0.00016869,2]
[393599512,1762837887205,-138.30339119,0.00016869,2]
[393599513,1762837891284,-325.12041557,0.00016869,2]
[393599514,1762837892832,-36.57619324,0.00016869,2]
[393599515,1762837892856,-134.50070291,0.00016869,2]
[393599516,1762837894913,-291.6468816,0.0001687,2]
[393599517,1762837897379,-329.66895012,0.0001687,2]
[393599518,1762837914927,-185.92512843,0.0001687,2]
[393599519,1762837918290,-202.10826479,0.0001687,2]
[393599520,1762837921998,-263.19380289,0.0001687,2]
[393599521,1762837924319,-300.0,0.00016869,2]
[393599522,1762837924344,-10.34054977,0.0001687,2]
[393599523,1762837926597,-166.25800024,0.0001687,2]
[393599524,1762837928821,-306.42106531,0.0001687,2]
[393599525,1762837933517,-352.30095932,0.0001687,2]
[393599526,1762837935047,-161.20593704,0.0001687,2]
[393599527,1762837937742,-249.81812272,0.0001687,2]
[393599528,1762837939626,-311.03580477,0.0001687,2]
[393599529,1762837941718,-166.88930777,0.0001687,2]
[393599530,1762837944335,-399.71080467,0.0001687,2]
[393599531,1762837946981,-336.0766321,0.0001687,2]
[393599532,1762837948557,-300.84977062,0.0001687,2]
[393599533,1762837950142,-304.73667405,0.0001687,2]
[393599534,1762837952948,-201.59698138,0.0001687,2]
[393599535,1762837953543,5378.7879594,0.00016019,2]
[393599536,1762837957089,-188.60787938,0.0001687,2]
[393599537,1762837959539,-234.00072363,0.0001687,2]
[393599538,1762837963141,-259.11748317,0.0001687,2]
[393599539,1762837963341,544.60384059,0.00016869,2]
[393599540,1762837963404,444.56152565,0.00016869,2]
[393599541,1762837963531,329.22592614,0.00016869,2]
[393599542,1762837965491,-358.35952485,0.0001687,2]
[393599543,1762837967102,-154.87352043,0.0001687,2]
[393599544,1762837969197,-210.60206046,0.0001687,2]
[393599545,1762837971419,-246.63467872,0.0001687,2]
[393599546,1762837973554,-208.28717155,0.0001687,2]
[393599547,1762837976186,500.0,0.00016869,2]
[393599548,1762837976215,248.47120596,0.00016869,2]
[393599549,1762837976242,245.99623025,0.00016869,2]
[393599550,1762837977080,-174.34604549,0.0001687,2]
[393599551,1762837979298,-243.31478545,0.0001687,2]
[393599552,1762837981079,-218.14480684,0.0001687,2]
[393599553,1762837981180,516.04298663,0.00016869,2]
[393599554,1762837981415,-8743.80700399,0.0001687,2]
[393599555,1762837981483,-10000.01,0.0001687,2]
[393599556,1762837981642,-10000.01,0.0001687,2]
[393599557,1762837981803,-10000.01,0.0001687,2]
[393599558,1762837981919,-10000.01,0.0001687,2]
[393599559,1762837982048,-10000.01,0.0001687,2]
[393599560,1762837982166,-10000.01,0.0001687,2]
[393599561,1762837982277,-10000.01,0.0001687,2]
[393599562,1762837982419,300.0,0.00016869,2]
[393599563,1762837983905,-9700.01,0.0001687,2]
[393599564,1762837984132,-10000.01,0.0001687,2]
[393599565,1762837986785,-10000.01,0.0001687,2]
[393599566,1762837986883,-10000.01,0.0001687,2]
[393599567,1762837987001,-10000.01,0.0001687,2]
[393599568,1762837987097,-10000.01,0.0001687,2]
[393599569,1762837987224,-10000.01,0.0001687,2]
[393599570,1762837987347,-10000.01,0.0001687,2]
[393599571,1762837987449,-10000.01,0.0001687,2]
[393599572,1762837987558,-10000.01,0.0001687,2]
[393599573,1762837989981,-10000.01,0.0001687,2]
[393599574,1762837990190,-10000.01,0.0001687,2]
[393599575,1762837992912,-10000.01,0.0001687,2]
[393599576,1762837993053,-10000.01,0.0001687,2]
[393599577,1762837993151,-10000.01,0.0001687,2]
[393599578,1762837993257,-10000.01,0.0001687,2]
[393599579,1762837993429,-10000.01,0.0001687,2]
[393599580,1762837993495,-10000.01,0.0001687,2]
[393599581,1762837993623,-10000.01,0.0001687,2]
[393599582,1762837993754,-10000.01,0.0001687,2]
[393599583,1762838004867,-238.39793954,0.0001687,2]
[393599584,1762838006500,-226.5880084,0.0001687,2]
[393599585,1762838008308,-197.99063882,0.0001687,2]
[393599586,1762838010333,-342.57316652,0.0001687,2]
[393599587,1762838012929,-252.37889118,0.0001687,2]
[393599588,1762838015253,-299.0,0.0001687,2]
[393599589,1762838018061,-151.0,0.0001687,2]
[393599590,1762838020308,-386.24495282,0.0001687,2]
[393599591,1762838025974,-312.77351553,0.0001687,2]
[393599592,1762838029877,-231.43998015,0.0001687,2]
[393599593,1762838033396,500.0,0.00016869,2]
[393599594,1762838033429,500.0,0.00016869,2]
[393599595,1762838033465,500.0,0.00016869,2]
[393599596,1762838033500,500.0,0.00016869,2]
[393599597,1762838033534,500.0,0.00016869,2]
[393599598,1762838033570,500.0,0.00016869,2]
[393599599,1762838033605,500.0,0.00016869,2]
[393599600,1762838033638,500.0,0.00016869,2]
[393599601,1762838033674,539.25319289,0.00016869,2]
[393599602,1762838033708,500.0,0.00016869,2]
[393599603,1762838033885,525.65448898,0.00016869,2]
[393599604,1762838033915,500.0,0.00016869,2]
[393599605,1762838033945,441.04548055,0.00016869,2]
[393599606,1762838033974,500.0,0.00016869,2]
[393599607,1762838034004,500.0,0.00016869,2]
[393599608,1762838034034,500.0,0.00016869,2]
[393599609,1762838034064,500.0,0.00016869,2]
[393599610,1762838034099,500.0,0.00016869,2]
[393599611,1762838034127,606.0690694,0.00016869,2]
[393599612,1762838034156,387.98776818,0.00016869,2]
[393599613,1762838034178,112.01223182,0.00016869,2]
[393599614,1762838034208,500.0,0.00016869,2]
[393599615,1762838034239,500.0,0.00016869,2]
[393599616,1762838034268,500.0,0.00016869,2]
[393599617,1762838034299,500.0,0.00016869,2]
[393599618,1762838034332,500.0,0.00016869,2]
[393599619,1762838034362,500.0,0.00016869,2]
[393599620,1762838034399,500.0,0.00016869,2]
[393599621,1762838034428,500.0,0.00016869,2]
[393599622,1762838034464,500.0,0.00016869,2]
[393599623,1762838034495,500.0,0.00016869,2]
[393599624,1762838034524,500.0,0.00016869,2]
[393599625,1762838034554,500.0,0.00016869,2]
[393599626,1762838034584,-155.26839453,0.0001687,2]
[393599627,1762838035848,-330.42149114,0.0001687,2]
[393599628,1762838041896,-321.37408128,0.0001687,2]
[393599629,1762838042921,300.0,0.00016869,2]
[393599630,1762838043939,434.96512671,0.00016869,2]
[393599631,1762838044559,-210.63514649,0.0001687,2]
[393599632,1762838046784,-305.75246421,0.0001687,2]
[393599633,1762838046865,349.33334718,0.00016869,2]
[393599667,1762838141251,161.0,0.000328,120]
[393599668,1762838169915,-215.75036845,0.00016482,2]
[393599669,1762838173656,-98.41362399,0.00016482,2]
[393599670,1762838173678,-57.08816758,0.00016685,2]
[393599671,1762838176230,161.0,0.000182,3]
[393599672,1762838176949,-200.81303965,0.00016685,2]
[393599680,1762838181647,-213.3638526,0.00016685,2]
[393599682,1762838183879,-305.36233915,0.00016685,2]
[393599693,1762838395468,-180.60251544,0.00016518,2]
[393599694,1762838399303,-185.48865006,0.00016518,2]
[393599695,1762838401071,-300.0,0.00016518,2]
[393599696,1762838589981,-223.15431032,0.00016353,2]
[393599697,1762838591537,-300.04711574,0.00016353,2]
[393599698,1762838595171,-194.71574966,0.00016353,2]
[393599700,1762838634901,-61.57263895,0.00016353,2]
[393599701,1762838634927,-361.46567784,0.00016673,2]
[393599702,1762838638516,-355.26784596,0.00016673,2]
[393599733,1762838846956,798.840409,0.00013699,2]
[393599735,1762838908991,598.91666715,0.00015,2]
[393599736,1762838915260,214.29534255,0.00016,2]
[393599737,1762838917831,2444.15548293,0.0001,2]
[393599738,1762838918483,166.1802984,0.00015872,2]
[393599742,1762839028432,5000.0,0.0001611,2]
[393599780,1762839032449,-207.92603046,0.00016457,2]
[393599782,1762839032459,-160.81857196,0.0001649,2]
[393599784,1762839032468,-1200.0,0.00016671,2]
[393599786,1762839032477,-300.0,0.00016671,2]
[393599788,1762839032487,-300.0,0.00016672,2]
[393599790,1762839032496,-300.0,0.00016672,2]
[393599792,1762839032506,-300.0,0.00016672,2]
[393599794,1762839032515,-300.0,0.00016672,2]
[393599796,1762839032525,-90.78362056,0.00016685,2]
[393599797,1762839032535,-305.82769399,0.00016768,2]
[393599799,1762839032544,-216.89110342,0.00016768,2]
[393599801,1762839032554,-502.85049878,0.00016768,2]
[393599804,1762839032564,-500.0,0.00016768,2]
[393599807,1762839032573,-500.0,0.00016768,2]
[393599810,1762839032582,-500.0,0.00016768,2]
[393599813,1762839032591,-500.0,0.00016768,2]
[393599816,1762839032600,-500.0,0.00016768,2]
[393599819,1762839032609,-500.0,0.00016768,2]
[393599822,1762839032618,-214.62443605,0.00016768,2]
[393599825,1762839032627,-159.12309785,0.00016768,2]
[393599827,1762839032636,-287.61488632,0.00016768,2]
[393599829,1762839032645,-500.0,0.00016768,2]
[393599831,1762839032655,-500.0,0.00016768,2]
[393599834,1762839032665,-500.0,0.00016768,2]
[393599837,1762839032674,-523.05319289,0.00016768,2]
[393599840,1762839032683,-500.0,0.00016768,2]
[393599843,1762839032697,-500.0,0.00016768,2]
[393599846,1762839032706,-500.0,0.00016768,2]
[393599849,1762839032715,-500.0,0.00016768,2]
[393599852,1762839032724,-500.0,0.00016768,2]
[393599855,1762839032734,-269.53464943,0.00016769,2]
[393599857,1762839032743,-500.0,0.00016769,2]
[393599859,1762839032752,-237.86808904,0.00016769,2]
[393599861,1762839032761,-500.0,0.00016769,2]
[393599863,1762839032772,-500.0,0.00016769,2]
[393599865,1762839032780,-500.0,0.00016769,2]
[393599867,1762839032790,-500.0,0.00016769,2]
[393599869,1762839032799,-500.0,0.00016769,2]
[393599871,1762839032810,-500.0,0.00016769,2]
[393599873,1762839032818,-500.0,0.00016769,2]
[393599875,1762839032828,-500.0,0.00016769,2]
[393599877,1762839032837,-500.0,0.00016769,2]
[393599879,1762839032846,-500.0,0.00016769,2]
[393599881,1762839032855,-500.0,0.00016769,2]
[393599883,1762839032866,-500.0,0.00016769,2]
[393599885,1762839032875,-383.10280099,0.00016769,2]
[393599886,1762839032885,-500.0,0.00016769,2]
[393599888,1762839032895,-500.0,0.00016769,2]
[393599890,1762839032905,-500.0,0.00016769,2]
[393599892,1762839032914,-500.0,0.00016769,2]
[393599893,1762839032923,-650.0,0.00016769,2]
[393599895,1762839032932,-600.0,0.00016769,2]
[393599897,1762839032941,-216.54922179,0.00016769,2]
[393599899,1762839032950,-28929.40966846,0.0001677,2]
[393599935,1762839038401,-2296.55955524,0.0001677,2]
[393599937,1762839038413,-956.60896308,0.0001677,2]
[393600206,1762839041358,-3e-08,0.0001677,2]
[393600661,1762839045514,-225874.36637405,0.0001677,2]
[393600678,1762839045683,-874.47,0.0001677,2]
[393600685,1762839045744,-33150.1567344,0.0001677,2]
[393600781,1762839046715,-1821.61706706,0.0001677,2]
[393600783,1762839046726,-590.0,0.0001677,2]
[393600789,1762839046774,-157922.63178251,0.0001677,2]
[393600791,1762839046785,-2637.75,0.0001677,2]
[393600797,1762839046834,-1267.15671184,0.0001677,2]
[393600799,1762839046845,-1349.9999975,0.0001677,2]
[393600840,1762839244734,-342.75243567,0.00016436,2]
[393600851,1762839483021,221.76,0.00015105,2]
[393600852,1762839540926,-2874.21498969,0.00016673,2]
[393600853,1762839541279,-4251.58002062,0.00016673,2]
[393600854,1762839548714,1496.84995876,0.00016673,2]
[393600855,1762839548740,3503.15004124,0.00016673,2]
[393600856,1762839570982,2192.10394385,0.00016673,2]
[393600857,1762839585562,433.516292,0.00015803,2]
[393600858,1762839677181,567.3478497,0.00018166,5]
[393600859,1762839699498,3871.23972291,0.00016673,2]
[393600860,1762839699521,2840.77849657,0.00016673,2]
[393600861,1762839821596,811.20119997,0.00017982,5]
[393600862,1762839844392,7159.23150343,0.0001667,2]
[393600863,1762839844419,10000.01,0.0001667,2]
[393600864,1762839844451,10000.01,0.0001667,2]
[393600865,1762839844480,10000.01,0.0001667,2]
[393600866,1762839844513,10000.01,0.0001667,2]
[393600867,1762839844544,10000.01,0.0001667,2]
[393600868,1762839844574,10000.01,0.0001667,2]
[393600869,1762839844603,10000.01,0.0001667,2]
[393600870,1762839851731,-5000.0,0.00016503,2]
[393600871,1762839855273,-5336.67935615,0.0001667,2]
[393600872,1762839855414,-10000.01,0.0001667,2]
[393600873,1762839855646,-10000.01,0.0001667,2]
[393600874,1762839855907,-10000.01,0.0001667,2]
[393600875,1762839856166,-10000.01,0.0001667,2]
[393600876,1762839857376,-10000.01,0.0001667,2]
[393600877,1762839857567,-10000.01,0.0001667,2]
[393600878,1762839857752,-10000.01,0.0001667,2]
[393600879,1762839858020,-10000.01,0.0001667,2]
[393600880,1762839858222,-10000.01,0.0001667,2]
[393600881,1762839858392,-10000.01,0.0001667,2]
[393600882,1762839858512,-10000.01,0.0001667,2]
[393600887,1762840051511,5000.0,0.0001611,2]
[393600888,1762840067073,5000.0,0.0001611,2]
[393600889,1762840074893,5000.0,0.0001611,2]
[393600890,1762840090203,5000.0,0.0001611,2]
[393600891,1762840098169,1014.17753175,0.0001611,2]
[393600892,1762840113376,5000.0,0.0001611,2]
[393600893,1762840136917,300.0,0.000161,2]
[393600894,1762840153873,300.0,0.000161,2]
[393600895,1762840164921,300.0,0.000161,2]
[393600896,1762840176827,300.0,0.000161,2]
[393600897,1762840187190,1428.68803646,0.0001611,2]
[393600898,1762840187968,300.0,0.000161,2]
[393600899,1762840193488,300.0,0.000161,2]
[393600912,1762840232611,-169.44009325,0.00016402,2]